fUSD/lending_fUSD_20250811
["ID","MTS","AMOUNT","RATE_DAILY","PERIOD"]
[378517119,1754891442986,-270.68,0.000209,2]
[378517121,1754891442995,-347.92,0.000209,2]
[378517122,1754891443004,-964.98,0.00020913,2]
[378517123,1754891443016,-5000.0,0.00020915,2]
[378517124,1754891443026,-5000.0,0.00020926,2]
[378517126,1754891443035,-5000.0,0.00020957,2]
[378517127,1754891443044,-167.40905843,0.0002096,2]
[378517128,1754891443054,-400.0,0.0002097,2]
[378517129,1754891443064,-400.0,0.0002097,2]
[378517130,1754891443073,-700.0,0.0002097,2]
[378517131,1754891443082,-1301.86759728,0.0002097,2]
[378517132,1754891443092,-166.66,0.00020988,2]
[378517135,1754891443102,-226.6,0.00020989,2]
[378517138,1754891443112,-388.57,0.00020998,2]
[378517141,1754891443122,-1000.0,0.00020999,2]
[378517143,1754891443131,-298.03,0.00020999,2]
[378517144,1754891443140,-200.0,0.00021,30]
[378517146,1754891443149,-242.90557,0.00021,30]
[378517147,1754891443159,-242.90557,0.00021,30]
[378517148,1754891443168,-242.90557,0.00021,30]
[378517149,1754891443177,-242.90557,0.00021,30]
[378517150,1754891443186,-242.90558,0.00021,30]
[378517151,1754891443196,-5000.0,0.00021017,2]
[378517152,1754891443205,-2443.27,0.00021021,2]
[378517153,1754891443215,-150.16,0.00021026,2]
[378517154,1754891443224,-600.0,0.0002103,2]
[378517155,1754891443233,-151.99,0.00021035,2]
[378517156,1754891443243,-25000.0,0.00021045,2]
[378517157,1754891443252,-500.0,0.0002105,2]
[378517158,1754891443263,-25000.0,0.00021076,2]
[378517159,1754891443272,-500.0,0.00021083,2]
[378517160,1754891443282,-272.91976139,0.00021096,2]
[378517161,1754891443292,-5000.0,0.00021107,2]
[378517162,1754891443301,-17399.19,0.00021113,2]
[378517163,1754891443311,-5000.0,0.00021123,2]
[378517164,1754891443320,-151.99,0.00021141,2]
[378517165,1754891443329,-5000.0,0.00021143,2]
[378517166,1754891443339,-166.0,0.00021151,4]
[378517167,1754891443348,-5000.0,0.00021151,2]
[378517168,1754891443357,-202.0,0.0002119,2]
[378517169,1754891443367,-1694.81,0.00021217,2]
[378517170,1754891443376,-5000.0,0.00021227,2]
[378517171,1754891443485,-5000.0,0.00021241,2]
[378517172,1754891443495,-5000.0,0.00021289,2]
[378517173,1754891443504,-2041.68,0.000213,2]
[378517174,1754891443514,-1897.56,0.000213,2]
[378517175,1754891443525,-270.68,0.000213,2]
[378517176,1754891443535,-260.679447,0.00021346,2]
[378517177,1754891443546,-260.679447,0.00021346,2]
[378517178,1754891443555,-158.83383,0.00021346,2]
[378517179,1754891443566,-158.83383,0.00021346,2]
[378517180,1754891443575,-5000.0,0.00021358,2]
[378517181,1754891443585,-2500.0,0.00021364,2]
[378517182,1754891443596,-5000.0,0.0002137,2]
[378517183,1754891443608,-904.99,0.00021402,2]
[378517184,1754891443617,-2094.83,0.00021429,2]
[378517185,1754891443627,-1818.9,0.00021433,2]
[378517187,1754891443635,-5000.0,0.00021475,2]
[378517189,1754891443647,-5000.0,0.00021531,2]
[378517191,1754891443657,-154.5,0.00021543,2]
[378517194,1754891443667,-1100.06,0.00021543,2]
[378517197,1754891443676,-513.74417535,0.00021598,2]
[378517200,1754891443685,-235.030308,0.000216,2]
[378517203,1754891443694,-235.030308,0.000216,2]
[378517205,1754891443703,-285.25996,0.000216,2]
[378517207,1754891443712,-285.25996,0.000216,2]
[378517209,1754891443721,-312.145439,0.000216,2]
[378517211,1754891443730,-354.007611,0.000216,2]
[378517213,1754891443740,-354.007611,0.000216,2]
[378517215,1754891443749,-249.954178,0.000216,2]
[378517217,1754891443758,-151.0,0.000216,2]
[378517219,1754891443768,-5000.0,0.00021606,2]
[378517221,1754891443777,-325.37,0.0002165,2]
[378517223,1754891443786,-5000.0,0.0002169,2]
[378517225,1754891443795,-150.87,0.00021778,2]
[378517226,1754891443804,-151.51,0.00021783,2]
[378517227,1754891443813,-1000.0,0.00021786,2]
[378517230,1754891443823,-219.829089,0.00021787,2]
[378517233,1754891443832,-219.829089,0.00021787,2]
[378517235,1754891443841,-196.029025,0.00021787,2]
[378517238,1754891443850,-196.029025,0.00021787,2]
[378517240,1754891443859,-189.246881,0.00021787,2]
[378517242,1754891443869,-189.246881,0.00021787,2]
[378517244,1754891443879,-151.0,0.00021787,2]
[378517246,1754891443888,-151.99,0.00021801,2]
[378517247,1754891443897,-25000.0,0.00021811,2]
[378517248,1754891443906,-151.99,0.00021819,2]
[378517249,1754891443915,-151.99,0.00021819,2]
[378517250,1754891443924,-175780.2683,0.00021829,2]
[378517251,1754891443933,-5000.0,0.00021843,2]
[378517252,1754891443942,-672.18,0.00021849,2]
[378517253,1754891443951,-226.6,0.00021851,2]
[378517254,1754891443960,-5000.0,0.0002186,2]
[378517255,1754891443971,-1000.0,0.00021899,2]
[378517256,1754891443980,-2041.68,0.000219,2]
[378517257,1754891443990,-1897.56,0.000219,2]
[378517258,1754891443999,-270.68,0.000219,2]
[378517259,1754891444009,-257.91778498,0.00021905,2]
[378517260,1754891444022,-5000.0,0.00021907,2]
[378517261,1754891444031,-3000.0,0.00021912,2]
[378517262,1754891444040,-2521.25,0.00021917,2]
[378517263,1754891444050,-5000.0,0.00021918,2]
[378517264,1754891444061,-666.0,0.00021918,3]
[378517265,1754891444071,-500.0,0.00021918,2]
[378517266,1754891444081,-500.0,0.00021918,2]
[378517267,1754891444092,-657.77003173,0.00021918,2]
[378517268,1754891444103,-150.0,0.00021918,2]
[378517269,1754891444112,-500.0,0.00021918,2]
[378517270,1754891444121,-228.34,0.00021935,2]
[378517271,1754891444130,-334.3204981,0.00021955,2]
[378517272,1754891444140,-260.679447,0.00022,7]
[378517273,1754891444150,-260.679447,0.00022,7]
[378517274,1754891444159,-158.83383,0.00022,7]
[378517275,1754891444168,-158.83383,0.00022,7]
[378517276,1754891444178,-300.0,0.00022,2]
[378517277,1754891444187,-1047.52,0.00022,7]
[378517278,1754891444197,-513.78,0.00022,7]
[378517279,1754891444207,-188.93,0.00022,2]
[378517280,1754891444216,-4016.72,0.00022062,2]
[378517281,1754891444225,-1337.30371513,0.00022103,2]
[378517282,1754891444234,-215.87,0.00022133,2]
[378517283,1754891444244,-494.1,0.00022186,2]
[378517284,1754891444253,-202.0,0.0002227,2]
[378517285,1754891444263,-376.39,0.0002228,2]
[378517286,1754891444272,-3292.0,0.00022293,2]
[378517287,1754891444281,-151.99,0.00022343,2]
[378517288,1754891444291,-209.5631345,0.00022351,2]
[378517289,1754891444302,-1000.0,0.00022353,2]
[378517290,1754891444311,-215.87,0.00022353,2]
[378517291,1754891444321,-347.53223871,0.0002246,2]
[378517292,1754891444330,-215.87,0.00022574,2]
[378517293,1754891444340,-1253.0,0.00022598,2]
[378517294,1754891444349,-3367.0,0.00022598,2]
[378517295,1754891444359,-957.0,0.00022598,2]
[378517297,1754891444368,-810.0,0.00022598,2]
[378517299,1754891444378,-958.0,0.00022598,2]
[378517300,1754891444388,-598.0,0.00022598,2]
[378517301,1754891444397,-565.0,0.00022598,2]
[378517302,1754891444406,-2027.0,0.00022598,2]
[378517303,1754891444415,-1295.0,0.00022598,2]
[378517304,1754891444425,-1171.0,0.00022598,2]
[378517305,1754891444434,-893.0,0.00022598,2]
[378517306,1754891444443,-1654.0,0.00022598,2]
[378517307,1754891444452,-6082.0,0.00022598,2]
[378517308,1754891444462,-4145.0,0.00022598,2]
[378517309,1754891444471,-14396.392,0.00022598,2]
[378517310,1754891444480,-285.52,0.00022603,2]
[378517311,1754891444490,-376.39,0.00022605,2]
[378517312,1754891444499,-563.46608371,0.00022636,2]
[378517313,1754891444508,-199.41,0.00022637,2]
[378517314,1754891444517,-226.6,0.00022714,2]
[378517315,1754891444527,-168.0,0.00022795,8]
[378517316,1754891444535,-181.39234776,0.00022877,2]
[378517317,1754891444545,-640.0,0.00022904,2]
[378517318,1754891444555,-1845.18,0.00022912,2]
[378517319,1754891444565,-376.39,0.0002293,2]
[378517320,1754891444575,-1095.1193,0.00023096,2]
[378517321,1754891444584,-200.0,0.000231,7]
[378517322,1754891444594,-500.0,0.00023256,2]
[378517323,1754891444603,-450.40606501,0.00023256,2]
[378517324,1754891444612,-500.0,0.00023256,2]
[378517325,1754891444621,-500.0,0.00023256,2]
[378517326,1754891444630,-500.0,0.00023256,2]
[378517327,1754891444639,-500.0,0.00023256,2]
[378517328,1754891444649,-500.0,0.00023256,2]
[378517329,1754891444658,-500.0,0.00023256,2]
[378517330,1754891444667,-500.0,0.00023256,2]
[378517331,1754891444676,-500.0,0.00023256,2]
[378517332,1754891444685,-500.0,0.00023256,2]
[378517333,1754891444695,-500.0,0.00023256,2]
[378517334,1754891444704,-500.0,0.00023256,2]
[378517335,1754891444713,-500.0,0.00023256,2]
[378517336,1754891444723,-500.0,0.00023256,2]
[378517337,1754891444732,-500.0,0.00023256,2]
[378517338,1754891444741,-500.0,0.00023256,2]
[378517339,1754891444750,-500.0,0.00023256,2]
[378517340,1754891444759,-500.0,0.00023256,2]
[378517341,1754891444769,-500.0,0.00023256,2]
[378517342,1754891444778,-500.0,0.00023256,2]
[378517343,1754891444787,-500.0,0.00023256,2]
[378517344,1754891444796,-500.0,0.00023256,2]
[378517345,1754891444805,-500.0,0.00023256,2]
[378517346,1754891444815,-500.0,0.00023256,2]
[378517347,1754891444824,-500.0,0.00023256,2]
[378517348,1754891444834,-500.0,0.00023256,2]
[378517349,1754891444843,-500.0,0.00023256,2]
[378517350,1754891444852,-500.0,0.00023256,2]
[378517351,1754891444861,-500.0,0.00023256,2]
[378517352,1754891444870,-500.0,0.00023256,2]
[378517353,1754891444879,-500.0,0.00023256,2]
[378517354,1754891444888,-500.0,0.00023256,2]
[378517355,1754891444897,-500.0,0.00023256,2]
[378517356,1754891444907,-500.0,0.00023256,2]
[378517357,1754891444916,-500.0,0.00023256,2]
[378517358,1754891444926,-500.0,0.00023256,2]
[378517359,1754891444935,-500.0,0.00023256,2]
[378517360,1754891444944,-500.0,0.00023256,2]
[378517361,1754891444953,-500.0,0.00023256,2]
[378517362,1754891444962,-500.0,0.00023256,2]
[378517363,1754891444971,-500.0,0.00023256,2]
[378517364,1754891444980,-500.0,0.00023256,2]
[378517365,1754891444989,-500.0,0.00023256,2]
[378517366,1754891444998,-500.0,0.00023256,2]
[378517367,1754891445007,-500.0,0.00023256,2]
[378517368,1754891445020,-500.0,0.00023256,2]
[378517369,1754891445029,-789.0,0.00023256,2]
[378517370,1754891445038,-621.0,0.00023256,2]
[378517371,1754891445049,-500.0,0.00023256,2]
[378517372,1754891445058,-500.0,0.00023256,2]
[378517373,1754891445067,-500.0,0.00023256,2]
[378517374,1754891445076,-500.0,0.00023256,2]
[378517375,1754891445087,-500.0,0.00023256,2]
[378517376,1754891445096,-500.0,0.00023256,2]
[378517377,1754891445105,-500.0,0.00023256,2]
[378517378,1754891445114,-500.0,0.00023256,2]
[378517379,1754891445123,-500.0,0.00023256,2]
[378517380,1754891445133,-500.0,0.00023256,2]
[378517381,1754891445142,-500.0,0.00023256,2]
[378517382,1754891445151,-500.0,0.00023256,2]
[378517383,1754891445161,-500.0,0.00023256,2]
[378517384,1754891445170,-500.0,0.00023256,2]
[378517385,1754891445180,-500.0,0.00023256,2]
[378517386,1754891445189,-500.0,0.00023256,2]
[378517387,1754891445199,-500.0,0.00023256,2]
[378517388,1754891445209,-500.0,0.00023256,2]
[378517389,1754891445219,-500.0,0.00023256,2]
[378517390,1754891445228,-500.0,0.00023256,2]
[378517391,1754891445237,-500.0,0.00023256,2]
[378517392,1754891445246,-500.0,0.00023256,2]
[378517393,1754891445256,-500.0,0.00023256,2]
[378517394,1754891445265,-500.0,0.00023256,2]
[378517395,1754891445275,-500.0,0.00023256,2]
[378517396,1754891445284,-500.0,0.00023256,2]
[378517397,1754891445293,-500.0,0.00023256,2]
[378517398,1754891445303,-500.0,0.00023256,2]
[378517399,1754891445312,-500.0,0.00023256,2]
[378517400,1754891445321,-500.0,0.00023256,2]
[378517401,1754891445331,-500.0,0.00023256,2]
[378517402,1754891445340,-500.0,0.00023256,2]
[378517403,1754891445350,-500.0,0.00023256,2]
[378517404,1754891445359,-500.0,0.00023256,2]
[378517405,1754891445369,-500.0,0.00023256,2]
[378517406,1754891445379,-500.0,0.00023256,2]
[378517407,1754891445388,-500.0,0.00023256,2]
[378517408,1754891445397,-500.0,0.00023256,2]
[378517409,1754891445407,-500.0,0.00023256,2]
[378517410,1754891445416,-500.0,0.00023256,2]
[378517411,1754891445425,-500.0,0.00023256,2]
[378517412,1754891445434,-500.0,0.00023256,2]
[378517413,1754891445443,-500.0,0.00023256,2]
[378517414,1754891445452,-500.0,0.00023256,2]
[378517415,1754891445461,-500.0,0.00023256,2]
[378517416,1754891445470,-500.0,0.00023256,2]
[378517417,1754891445479,-500.0,0.00023256,2]
[378517418,1754891445488,-500.0,0.00023256,2]
[378517419,1754891445497,-500.0,0.00023256,2]
[378517420,1754891445506,-500.0,0.00023256,2]
[378517421,1754891445515,-500.0,0.00023256,2]
[378517422,1754891445525,-500.0,0.00023256,2]
[378517423,1754891445533,-500.0,0.00023256,2]
[378517424,1754891445542,-500.0,0.00023256,2]
[378517425,1754891445553,-500.0,0.00023256,2]
[378517426,1754891445562,-500.0,0.00023256,2]
[378517427,1754891445572,-500.0,0.00023256,2]
[378517428,1754891445581,-500.0,0.00023256,2]
[378517429,1754891445590,-500.0,0.00023256,2]
[378517430,1754891445599,-500.0,0.00023256,2]
[378517431,1754891445609,-500.0,0.00023256,2]
[378517432,1754891445618,-500.0,0.00023256,2]
[378517433,1754891445627,-500.0,0.00023256,2]
[378517434,1754891445636,-500.0,0.00023256,2]
[378517435,1754891445645,-500.0,0.00023256,2]
[378517436,1754891445655,-500.0,0.00023256,2]
[378517437,1754891445664,-500.0,0.00023256,2]
[378517438,1754891445673,-500.0,0.00023256,2]
[378517439,1754891445683,-500.0,0.00023256,2]
[378517440,1754891445692,-500.0,0.00023256,2]
[378517441,1754891445701,-500.0,0.00023256,2]
[378517442,1754891445711,-500.0,0.00023256,2]
[378517443,1754891445720,-500.0,0.00023256,2]
[378517444,1754891445730,-500.0,0.00023256,2]
[378517445,1754891445739,-500.0,0.00023256,2]
[378517446,1754891445749,-500.0,0.00023256,2]
[378517447,1754891445758,-500.0,0.00023256,2]
[378517448,1754891445767,-500.0,0.00023256,2]
[378517449,1754891445777,-500.0,0.00023256,2]
[378517450,1754891445786,-500.0,0.00023256,2]
[378517451,1754891445796,-500.0,0.00023256,2]
[378517452,1754891445806,-500.0,0.00023256,2]
[378517453,1754891445817,-500.0,0.00023256,2]
[378517454,1754891445827,-500.0,0.00023256,2]
[378517455,1754891445837,-500.0,0.00023256,2]
[378517456,1754891445846,-500.0,0.00023256,2]
[378517457,1754891445856,-500.0,0.00023256,2]
[378517458,1754891445865,-500.0,0.00023256,2]
[378517459,1754891445875,-500.0,0.00023256,2]
[378517460,1754891445884,-500.0,0.00023256,2]
[378517461,1754891445893,-500.0,0.00023256,2]
[378517462,1754891445902,-500.0,0.00023256,2]
[378517463,1754891445912,-500.0,0.00023256,2]
[378517465,1754891445921,-582.0,0.00023256,2]
[378517466,1754891445930,-500.0,0.00023256,2]
[378517467,1754891445939,-500.0,0.00023256,2]
[378517468,1754891445949,-500.0,0.00023256,2]
[378517469,1754891445958,-500.0,0.00023256,2]
[378517470,1754891445967,-500.0,0.00023256,2]
[378517471,1754891445976,-500.0,0.00023256,2]
[378517472,1754891445986,-500.0,0.00023256,2]
[378517473,1754891445995,-500.0,0.00023256,2]
[378517474,1754891446004,-500.0,0.00023256,2]
[378517475,1754891446014,-500.0,0.00023256,2]
[378517476,1754891446026,-500.0,0.00023256,2]
[378517478,1754891446036,-500.0,0.00023256,2]
[378517479,1754891446046,-500.0,0.00023256,2]
[378517480,1754891446060,-500.0,0.00023256,2]
[378517481,1754891446070,-500.0,0.00023256,2]
[378517482,1754891446079,-500.0,0.00023256,2]
[378517483,1754891446088,-500.0,0.00023256,2]
[378517484,1754891446099,-500.0,0.00023256,2]
[378517486,1754891446108,-500.0,0.00023256,2]
[378517487,1754891446117,-500.0,0.00023256,2]
[378517488,1754891446127,-500.0,0.00023256,2]
[378517489,1754891446136,-500.0,0.00023256,2]
[378517490,1754891446145,-500.0,0.00023256,2]
[378517491,1754891446155,-500.0,0.00023256,2]
[378517492,1754891446164,-500.0,0.00023256,2]
[378517493,1754891446174,-500.0,0.00023256,2]
[378517494,1754891446183,-606.0,0.00023256,2]
[378517495,1754891446192,-267.46074303,0.00023274,2]
[378517496,1754891446202,-1047.52,0.000233,7]
[378517497,1754891446212,-334.3204981,0.00023302,2]
[378517498,1754891446221,-202.0,0.0002336,2]
[378517499,1754891446230,-513.78,0.000234,7]
[378517500,1754891446239,-1386.78395259,0.00023472,2]
[378517501,1754891446248,-4016.72,0.00023504,2]
[378517502,1754891446258,-200.0,0.0002351,7]
[378517503,1754891446267,-226.6,0.00023576,2]
[378517504,1754891446276,-235.030308,0.000236,7]
[378517505,1754891446285,-235.030308,0.000236,7]
[378517506,1754891446296,-285.25996,0.000236,7]
[378517507,1754891446308,-285.25996,0.000236,7]
[378517508,1754891446318,-312.145439,0.000236,7]
[378517509,1754891446327,-312.145439,0.000236,7]
[378517510,1754891446337,-354.007611,0.000236,7]
[378517511,1754891446347,-354.007611,0.000236,7]
[378517512,1754891446356,-151.0,0.000236,7]
[378517513,1754891446365,-431.25397426,0.00023684,2]
[378517514,1754891446375,-1000.0,0.00023799,2]
[378517515,1754891446384,-1000.0,0.00023804,2]
[378517516,1754891446393,-701.61764773,0.00023804,2]
[378517517,1754891446402,-200.0,0.00023895,2]
[378517518,1754891446411,-3653.2924,0.000239,2]
[378517519,1754891446420,-219.829089,0.00024,7]
[378517520,1754891446430,-219.829089,0.00024,7]
[378517521,1754891446440,-196.029025,0.00024,7]
[378517522,1754891446450,-196.029025,0.00024,7]
[378517523,1754891446460,-189.246881,0.00024,7]
[378517524,1754891446470,-189.246881,0.00024,7]
[378517525,1754891446480,-151.0,0.00024,7]
[378517526,1754891446490,-188.93,0.00024,2]
[378517527,1754891446500,-500.0,0.00024082,2]
[378517528,1754891446510,-200.0,0.000241,7]
[378517529,1754891446519,-457.87080987,0.000241,7]
[378517530,1754891446529,-842.86497659,0.000241,7]
[378517531,1754891446539,-1400.71,0.00024109,2]
[378517532,1754891446548,-196.219353,0.00024119,2]
[378517533,1754891446559,-500.0,0.00024351,2]
[378517534,1754891446569,-1047.52,0.000244,7]
[378517535,1754891446578,-494.1,0.00024404,2]
[378517536,1754891446587,-171.0,0.00024438,13]
[378517537,1754891446597,-226.6,0.00024439,2]
[378517538,1754891446606,-202.0,0.0002445,2]
[378517539,1754891446615,-3368.0,0.00024474,2]
[378517540,1754891446625,-200.0,0.0002451,7]
[378517542,1754891446634,-738.9303,0.0002456,3]
[378517543,1754891446643,-560.67827741,0.00024584,4]
[378517544,1754891446653,-1000.0,0.00024588,2]
[378517545,1754891446662,-492.0,0.000246,2]
[378517546,1754891446672,-277.35679052,0.00024643,2]
[378517547,1754891446681,-334.3204981,0.00024649,2]
[378517548,1754891446690,-2521.25,0.00024657,4]
[378517549,1754891446700,-1000.0,0.00024658,2]
[378517550,1754891446710,-3708.96,0.00024685,30]
[378517551,1754891446720,-513.78,0.000247,7]
[378517552,1754891446730,-260.679447,0.0002471,7]
[378517553,1754891446740,-260.679447,0.0002471,7]
[378517554,1754891446752,-158.83383,0.0002471,7]
[378517555,1754891446762,-158.83383,0.0002471,7]
[378517556,1754891446772,-1000.0,0.00024799,2]
[378517557,1754891446781,-235.030308,0.000248,7]
[378517558,1754891446791,-235.030308,0.000248,7]
[378517559,1754891446802,-260.679447,0.000248,7]
[378517560,1754891446812,-285.25996,0.000248,7]
[378517561,1754891446822,-260.679447,0.000248,7]
[378517562,1754891446831,-285.25996,0.000248,7]
[378517563,1754891446840,-158.83383,0.000248,7]
[378517564,1754891446850,-158.83383,0.000248,7]
[378517565,1754891446859,-312.145439,0.000248,7]
[378517566,1754891446869,-312.145439,0.000248,7]
[378517567,1754891446878,-354.007611,0.000248,7]
[378517568,1754891446888,-354.007611,0.000248,7]
[378517569,1754891446897,-151.0,0.000248,7]
[378517570,1754891446906,-752.81673965,0.000248,2]
[378517571,1754891446915,-216706.80641116,0.000248,2]
[378517572,1754891446925,-160.0,0.000248,7]
[378517573,1754891446934,-211.73953792,0.000248,7]
[378517574,1754891446944,-497631.637739,0.000248,2]
[378517575,1754891446953,-1438.09495884,0.00024841,2]
[378517576,1754891446962,-500.15179162,0.00024873,2]
[378517577,1754891446971,-159.79101748,0.00024873,2]
[378517578,1754891446980,-235.030308,0.000249,7]
[378517579,1754891446990,-235.030308,0.000249,7]
[378517580,1754891446999,-260.679447,0.000249,7]
[378517581,1754891447009,-285.25996,0.000249,7]
[378517582,1754891447022,-260.679447,0.000249,7]
[378517583,1754891447031,-285.25996,0.000249,7]
[378517584,1754891447040,-158.83383,0.000249,7]
[378517585,1754891447050,-158.83383,0.000249,7]
[378517586,1754891447060,-312.145439,0.000249,7]
[378517587,1754891447070,-312.145439,0.000249,7]
[378517588,1754891447079,-722.683687,0.000249,7]
[378517589,1754891447090,-354.007611,0.000249,7]
[378517591,1754891447100,-354.007611,0.000249,7]
[378517593,1754891447110,-219.829089,0.000249,7]
[378517595,1754891447121,-219.829089,0.000249,7]
[378517597,1754891447130,-219.829089,0.000249,7]
[378517599,1754891447140,-219.829089,0.000249,7]
[378517601,1754891447150,-151.0,0.000249,7]
[378517603,1754891447159,-196.029025,0.000249,7]
[378517605,1754891447168,-196.029025,0.000249,7]
[378517607,1754891447179,-196.029025,0.000249,7]
[378517609,1754891447189,-196.029025,0.000249,7]
[378517610,1754891447198,-189.246881,0.000249,7]
[378517611,1754891447211,-189.246881,0.000249,7]
[378517612,1754891447220,-189.246881,0.000249,7]
[378517613,1754891447230,-189.246881,0.000249,7]
[378517614,1754891447239,-155.002544,0.000249,7]
[378517615,1754891447249,-17871.74,0.000249,7]
[378517616,1754891447259,-185073.609541,0.000249,2]
[378517617,1754891447270,-8271.68491761,0.000249,2]
[378517618,1754891447279,-4016.72,0.00024946,2]
[378517619,1754891447289,-310.55,0.00025,2]
[378517620,1754891447299,-150.0,0.00025,2]
[378517621,1754891447313,-150.0,0.00025,2]
[378517622,1754891447322,-213.0,0.00025,2]
[378517623,1754891447332,-150.0,0.00025,2]
[378517624,1754891447341,-150.0,0.00025,2]
[378517625,1754891447350,-150.0,0.00025,2]
[378517626,1754891447360,-150.0,0.00025,2]
[378517627,1754891447369,-150.0,0.00025,2]
[378517628,1754891447379,-150.0,0.00025,2]
[378517629,1754891447388,-1376.63,0.00025,7]
[378517630,1754891447397,-150.0,0.00025,2]
[378517631,1754891447407,-150.0,0.00025,2]
[378517632,1754891447417,-159.0,0.00025,7]
[378517633,1754891447427,-150.0,0.00025,2]
[378517634,1754891447436,-176.11358765,0.00025069,2]
[378517635,1754891447445,-200.0,0.000251,7]
[378517636,1754891447454,-2041.68,0.000253,2]
[378517637,1754891447464,-1897.56,0.000253,2]
[378517638,1754891447473,-270.68,0.000253,2]
[378517639,1754891447483,-226.6,0.00025301,2]
[378517640,1754891447492,-285.52,0.00025342,2]
[378517641,1754891447501,-2500.0,0.000254,7]
[378517642,1754891447510,-2500.0,0.00025409,7]
[378517643,1754891447519,-2500.0,0.00025417,7]
[378517644,1754891447528,-2500.0,0.00025426,7]
[378517645,1754891447626,-2500.0,0.00025435,7]
[378517646,1754891447674,-2500.0,0.00025444,7]
[378517647,1754891447684,-2500.0,0.00025453,7]
[378517648,1754891447693,-2500.0,0.00025461,7]
[378517649,1754891447703,-2500.0,0.0002547,7]
[378517650,1754891447712,-2500.0,0.00025479,7]
[378517651,1754891447722,-150.0,0.0002548,2]
[378517652,1754891447731,-500.0,0.0002548,2]
[378517653,1754891447740,-500.0,0.0002548,2]
[378517654,1754891447749,-154.59392805,0.0002548,2]
[378517655,1754891447759,-150.0,0.0002548,2]
[378517656,1754891447768,-150.0,0.0002548,2]
[378517657,1754891447778,-150.98708686,0.0002548,2]
[378517658,1754891447787,-162.49004194,0.0002548,2]
[378517659,1754891447796,-500.0,0.0002548,2]
[378517660,1754891447806,-151.597239,0.0002548,2]
[378517661,1754891447815,-500.0,0.0002548,2]
[378517662,1754891447825,-500.0,0.0002548,2]
[378517663,1754891447834,-150.0,0.0002548,2]
[378517664,1754891447844,-158.47627965,0.0002548,2]
[378517665,1754891447853,-150.0,0.0002548,2]
[378517666,1754891447862,-500.0,0.0002548,2]
[378517667,1754891447872,-500.0,0.0002548,2]
[378517668,1754891447882,-150.11084682,0.0002548,2]
[378517669,1754891447891,-202.0,0.0002554,2]
[378517670,1754891447900,-400.0,0.0002557,2]
[378517671,1754891447910,-700.0,0.0002557,2]
[378517672,1754891447919,-1253.0,0.00025598,2]
[378517673,1754891447929,-3367.0,0.00025598,2]
[378517674,1754891447938,-957.0,0.00025598,2]
[378517675,1754891447947,-810.0,0.00025598,2]
[378517676,1754891447956,-958.0,0.00025598,2]
[378517677,1754891447966,-598.0,0.00025598,2]